[Event "Slovakia Open 2022"]
[Site "Bratislava"]
[Date "2022.09.30"]
[Round "1.1"]
[White "Korobov, Anton"]
[Black "Mizicka, Matus"]
[Result "1-0"]
[ECO "E73"]
[WhiteElo "2671"]
[BlackElo "1975"]
[Annotator "TA"]
[PlyCount "63"]
[EventDate "2022.09.30"]
[EventCountry "SVK"]
[SourceTitle "playchess.com"]
[Source "ChessBase"]
[SourceQuality "1"]
[TimeControl "2700+10"]

{[%evp 21,63,79,100,92,129,122,185,188,179,182,223,245,297,316,304,309,395,297,415,306,439,445,416,391,385,387,454,406,502,462,513,454,920,676,978,927,3226,3267,29987,29988,29989,29990,29994,29995]} 1. d4 {[%emt 0:00:05]} Nf6 {[%emt 0:00:02]} 2. c4 {[%emt 0:00:03]} g6 {[%emt 0:00:09]} 3. Nc3 {[%emt 0:00:06]} Bg7 {[%emt 0:00:15]} 4. e4 {[%emt 0:00:04]} d6 {[%emt 0:00:25]} 5. Be2 {[%emt 0:00:02]} O-O {[%emt 0:00:29]} 6. Bg5 {[%emt 0:00:04]} h6 {[%emt 0:00:38]} 7. Be3 {[%emt 0:00:05]} Nbd7 {[%emt 0:00:38]} 8. Qd2 {[%emt 0:00:37]} Kh7 {[%emt 0:00:08]} 9. g4 {[%emt 0:00:43]} e5 {[%emt 0:02:09]} 10. d5 {[%emt 0:00:04]} Nc5 {[%emt 0:02:10]} 11. f3 {[%emt 0:00:18]} a5 {[%emt 0:01:44]} 12. Nh3 $5 {[%emt 0:00:10][%cal Bg1h3,Bh3f2,Bf2e4][%mdl 4] A promising side line. E73: King's Indian: Averbakh Variation without 6...c5.} Ne8 {[%emt 0:02:26]} 13. Nf2 {[%emt 0:00:29] White is more active.} f5 {[%emt 0:04:04] [#]} (13... Nf6 $16) 14. exf5 $146 {[%emt 0:00:25] White is clearly better.} ({Predecessor:} 14. gxf5 gxf5 15. O-O-O f4 16. Bxc5 dxc5 17. Nd3 b6 18. Rhg1 Nd6 19. Rxg7+ Kxg7 20. Nxe5 {0-1 (27) Vezzosi,P (2308)-Dobboletta,A (1995) Arco 2012}) 14... gxf5 {[%emt 0:00:07]} 15. h4 {[%emt 0:00:21]} fxg4 {[%emt 0:04:38]} 16. fxg4 {[%emt 0:00:12]} ({Stronger than} 16. Bxc5 dxc5 17. fxg4 Nd6 $11) 16... b6 {[%emt 0:01:46]} 17. O-O-O {[%emt 0:00:16]} a4 {[%emt 0:01:39]} 18. Nfe4 {[%emt 0:00:29]} Bd7 {[%emt 0:01:43]} (18... Nxe4 $2 19. Nxe4 a3 20. g5 axb2+ 21. Kxb2 $18) 19. Nxc5 {[%emt 0:01:08]} bxc5 {[%emt 0:00:02]} 20. Bd3+ {[%emt 0:00:05]} Kh8 {[%emt 0:00:54]} (20... Kg8 {was called for.} 21. Bxh6 a3 22. Bxg7 axb2+ 23. Kxb2 Kxg7) 21. Bxh6 {[%emt 0:00:05]} ({Less strong is} 21. g5 e4 $18) 21... Qf6 {[%emt 0:02:50]} 22. Bxg7+ {[%emt 0:00:23]} Qxg7 {[%emt 0:00:02]} 23. g5 {[%emt 0:00:12][%cal Bg4g5,Bg5g6,Bg6g7][%mdl 32] [#] Strongly threatening Rdf1.} a3 {[%emt 0:00:28]} 24. b3 {[%emt 0:00:07]} Bg4 {[%emt 0:01:17]} 25. Rdf1 {[%emt 0:00:29]} Bf3 {[%emt 0:03:28]} 26. Rhg1 {[%emt 0:00:35][%cal Oh4h5]} c6 {[%emt 0:05:16]} (26... e4 $142 27. Bxe4 Bxe4 28. Rxf8+ Qxf8) 27. g6 {[%emt 0:01:31][%cal Oh4h5] [#] Threatens to win with h5!} Nc7 {[%emt 0:02:44]} 28. h5 {[%emt 0:00:52][%cal Bh4h5,Bh5h6][%mdl 32]} e4 {[%emt 0:03:19]} 29. h6 {[%emt 0:00:12]} Qe5 {[%emt 0:00:32]} 30. g7+ {[%emt 0:00:05] White mates.} Kh7 {[%emt 0:00:51]} 31. Bxe4+ {[%emt 0:00:37]} Bxe4 {[%emt 0:00:34]} 32. Rxf8 {[%emt 0:00:10] White took control after the opening.  Weighted Error Value: White=0.38/Black=0.80} 1-0

[Event "Slovakia Open 2022"]
[Site "Bratislava"]
[Date "2022.09.30"]
[Round "1.2"]
[White "Nytra, Ondrej"]
[Black "Stocek, Jiri"]
[Result "0-1"]
[ECO "B09"]
[WhiteElo "2233"]
[BlackElo "2559"]
[Annotator "TA"]
[PlyCount "32"]
[EventDate "2022.09.30"]
[EventCountry "SVK"]
[SourceTitle "playchess.com"]
[Source "ChessBase"]
[SourceQuality "1"]
[TimeControl "2700+10"]

{[%evp 9,32,39,35,25,27,38,33,0,25,-106,-106,-400,-387,-393,-376,-609,-579,-904,-898,-897,-861,-814,-814,-1767,-1779]} 1. e4 {[%emt 0:00:04]} d6 {[%emt 0:01:27]} 2. d4 {[%emt 0:00:13]} Nf6 {[%emt 0:01:00]} 3. Nc3 {[%emt 0:00:18]} g6 {[%emt 0:00:06]} 4. f4 {[%emt 0:00:10]} Bg7 {[%emt 0:00:20]} 5. Nf3 {[%emt 0:00:34]} Nc6 {[%emt 0:02:04]} 6. e5 {[%emt 0:07:00] B09: Pirc Defence: Austrian Attack.} dxe5 {[%emt 0:02:04]} 7. fxe5 {[%emt 0:03:19]} Nd5 {[%emt 0:04:26][%cal Bf6d5,Bd5c3,Bc3d1][%mdl 32]} 8. Bc4 {[%emt 0:05:44] White is slightly better.} Be6 {[%emt 0:04:29] [#] Hoping for ...Nxc3.} 9. Ng5 $146 {[%emt 0:12:48]} (9. Qd2 $11) ({Predecessor:} 9. Bb3 Qd7 10. O-O O-O 11. Ne4 Bf5 12. Nc5 Qd8 13. Nxb7 Qb8 14. Bxd5 Qxb7 15. Nh4 {1-0 (78) Siva,M (2349)-Osmak,I (2438) Chess.com INT 2020}) 9... Nxc3 $17 {[%emt 0:04:50]} 10. Bxe6 $4 {[%emt 0:12:05][%mdl 8192]} (10. Nxe6 $17 Nxd1 11. Nxd8 Rxd8 12. c3) 10... Nxd1 $19 {[%emt 0:02:14] Pair of Knights!} 11. Bxf7+ {[%emt 0:00:08]} Kf8 {[%emt 0:00:11][%cal Oc6d4]} ({But not} 11... Kd7 $2 12. Ne6 Qb8 13. Nxg7 Nxd4 14. O-O) 12. Rf1 $2 {[%emt 0:02:00]} (12. c3 Nxe5 13. dxe5) 12... Nxd4 {[%emt 0:01:15] Black is clearly winning.} 13. Bxg6+ {[%emt 0:00:44] [#]} Bf6 $1 {[%emt 0:00:27]} 14. Bd3 {[%emt 0:00:40]} Kg7 {[%emt 0:01:15] White must now prevent ...Bxg5.} 15. exf6+ {[%emt 0:01:36]} exf6 {[%emt 0:00:04]} 16. Nf3 {[%emt 0:00:08] [#]} Nxc2+ $1 {[%emt 0:00:19] Black took control after the opening.  Weighted Error Value: White=1.64/Black=0.02 (flawless)} 0-1

[Event "Slovakia Open 2022"]
[Site "Bratislava"]
[Date "2022.09.30"]
[Round "1.3"]
[White "Laurusas, Tomas"]
[Black "Rancso, Mark"]
[Result "1-0"]
[ECO "D30"]
[WhiteElo "2563"]
[BlackElo "1960"]
[Annotator "TA"]
[PlyCount "68"]
[EventDate "2022.09.30"]
[EventCountry "SVK"]
[SourceTitle "playchess.com"]
[Source "ChessBase"]
[SourceQuality "1"]
[TimeControl "2700+10"]

{[%evp 9,68,12,11,10,16,14,14,27,19,23,33,27,37,34,37,31,37,43,54,62,71,72,89,93,104,111,106,104,138,138,124,87,92,95,100,89,100,93,88,88,88,93,92,90,131,121,134,131,130,128,131,131,121,0,118,111,144,97,90,81,89]} 1. d4 {[%emt 0:00:04]} d5 {[%emt 0:00:03]} 2. c4 {[%emt 0:00:02]} c6 {[%emt 0:00:04]} 3. Nf3 {[%emt 0:00:03]} Nf6 {[%emt 0:00:04]} 4. Nbd2 {[%emt 0:00:24]} e6 {[%emt 0:00:15]} 5. e3 {[%emt 0:01:05]} Be7 {[%emt 0:00:05]} 6. b3 {[%emt 0:00:03] D30: Queen's Gambit Declined: Systems without Nc3.} O-O {[%emt 0:00:17]} 7. Bb2 {[%emt 0:00:02]} Nbd7 {[%emt 0:00:46]} 8. Bd3 {[%emt 0:00:10] The position is equal.} c5 {[%emt 0:03:13]} 9. cxd5 $5 {[%emt 0:00:21][%mdl 4] An interesting side line.} exd5 {[%emt 0:00:04]} 10. O-O {[%emt 0:00:08]} cxd4 {[%emt 0:01:12]} 11. Nxd4 {[%emt 0:02:04]} Nc5 {[%emt 0:01:00]} 12. Be2 {[%emt 0:00:19] [#]} a5 $146 {[%emt 0:06:33]} ({Predecessor:} 12... Bd7 13. N2f3 Qb6 14. Rc1 Rac8 15. Ne5 Be6 16. Bf3 Nce4 17. Qd3 a6 18. Ne2 Qa5 19. a3 Qd2 20. Qxd2 Nxd2 21. Rfd1 Nxb3 22. Rxc8 Rxc8 23. Nf4 Rc2 24. Ned3 Ne4 {0-1 (23) Bandlow,M (1763)-Guenther,T (2038) Berlin 2002}) 13. Rc1 {[%emt 0:01:08]} Bd7 {[%emt 0:01:00]} 14. N2f3 {[%emt 0:00:13][%cal Bd2f3,Bf3h4,Bh4f5,Bf5h6][%mdl 32]} Bd6 {[%emt 0:02:41]} 15. Nh4 {[%emt 0:01:38]} Rc8 {[%emt 0:02:10]} 16. Ndf5 {[%emt 0:01:25]} Bxf5 {[%emt 0:01:15]} 17. Nxf5 {[%emt 0:00:02]} Re8 {[%emt 0:06:19]} 18. Bg4 {[%emt 0:01:47][%cal Of5g7] [#] And now Nxg7! would win. A strong pair of Bishops.} Be5 {[%emt 0:01:02]} 19. Bxe5 {[%emt 0:25:02]} Rxe5 {[%emt 0:00:18]} 20. Qd4 {[%emt 0:03:06]} Nxg4 {[%emt 0:09:29]} ({Not} 20... Re4 21. Rxc5 Ra8 22. Qb2 Rxg4 23. Rfc1 $16) 21. Qxg4 {[%emt 0:00:02][%csl Gf5][%cal Rg4g7]} g6 {[%emt 0:00:08]} 22. Nh6+ {[%emt 0:02:37]} Kg7 {[%emt 0:02:23] [#]} 23. Qd4 $1 {[%emt 0:00:01][%csl LRc5,LRe5]} ({Worse is} 23. Qf4 Re4 24. Nxf7 Qe7 25. Qh6+ (25. Qd6 $2 Kxf7 26. Qxd5+ Kg7 $17) 25... Kxf7 $17) 23... f6 {[%emt 0:00:02] White must now prevent ...Re4.} 24. Rxc5 {[%emt 0:00:02]} Rxc5 {[%emt 0:00:05]} 25. Qxc5 {[%emt 0:00:22] Ng4 is the strong threat.} Kxh6 $16 {[%emt 0:00:05][%mdl 4096] Endgame KQR-KQR} 26. Rd1 {[%emt 0:00:01]} Kg7 {[%emt 0:00:54]} 27. h3 {[%emt 0:00:22]} Kf7 {[%emt 0:01:37]} 28. Rd4 {[%emt 0:02:19]} h5 {[%emt 0:03:16]} 29. Qb5 {[%emt 0:01:36]} b6 {[%emt 0:01:15]} 30. Qc6 {[%emt 0:01:00] Prevents Qd6.} Re6 {[%emt 0:01:05]} 31. Qb5 {[%emt 0:00:54] White is more active.} Re5 $1 {[%emt 0:00:06]} 32. Qd3 {[%emt 0:00:09]} f5 {[%emt 0:00:48]} 33. Kh2 {[%emt 0:01:24]} ({Better is} 33. f4 Re7 34. Rxd5) 33... Ke6 {[%emt 0:00:52]} 34. Qb5 {[%emt 0:00:18]} Qd6 {[%emt 0:00:24] Weighted Error Value: White=0.10 (very precise) /Black=0.07 (flawless)} 1-0

[Event "Slovakia Open 2022"]
[Site "Bratislava"]
[Date "2022.09.30"]
[Round "1.5"]
[White "Heberla, Bartlomiej"]
[Black "Kucera, Michal"]
[Result "1-0"]
[ECO "B33"]
[WhiteElo "2568"]
[BlackElo "1927"]
[Annotator "TA"]
[PlyCount "55"]
[EventDate "2022.09.30"]
[EventCountry "SVK"]
[SourceTitle "playchess.com"]
[Source "ChessBase"]
[SourceQuality "1"]
[TimeControl "2700+10"]

{[%evp 23,55,9,13,0,8,7,14,17,37,24,26,18,43,38,41,46,59,62,64,38,38,38,97,100,195,186,207,70,78,24,633,620,657,645]} 1. e4 {[%emt 0:00:05]} c5 {[%emt 0:00:08]} 2. Nf3 {[%emt 0:00:01][%cal Bg1f3,Bf3d4,Bd4b5,Bb5a3,Ba3c2][%mdl 32]} Nc6 {[%emt 0:00:02]} 3. d4 {[%emt 0:00:02]} cxd4 {[%emt 0:00:01]} 4. Nxd4 {[%emt 0:00:02]} Nf6 {[%emt 0:00:02]} 5. Nc3 {[%emt 0:00:02]} e5 {[%emt 0:00:02]} 6. Ndb5 {[%emt 0:00:01]} d6 {[%emt 0:00:01]} 7. Bg5 {[%emt 0:00:03]} a6 {[%emt 0:00:02]} 8. Na3 {[%emt 0:00:02]} b5 {[%emt 0:00:01][%cal Bb7b5,Bb5b4][%mdl 32]} 9. Nd5 {[%emt 0:00:02]} Be7 {[%emt 0:00:10]} 10. Bxf6 {[%emt 0:00:02]} Bxf6 {[%emt 0:00:00]} 11. c4 {[%emt 0:00:01]} b4 {[%emt 0:00:00]} 12. Nc2 {[%emt 0:00:02]} a5 {[%emt 0:00:24] 12...0-0 is more advanced technology.} 13. g3 {[%emt 0:00:02] B33: Sicilian: Pelikan and Sveshnikov Variations.} O-O {[%emt 0:00:57]} 14. Bg2 {[%emt 0:00:09]} Be6 {[%emt 0:01:01]} 15. O-O {[%emt 0:01:05] The position is equal.} Rb8 {[%emt 0:01:07]} 16. b3 {[%emt 0:00:51]} Bxd5 {[%emt 0:03:44] [#]} 17. cxd5 $146 {[%emt 0:05:14]} ({Predecessor:} 17. Qxd5 Qb6 18. Rad1 Rfd8 19. Qd3 a4 20. Qe2 Ra8 21. Rd5 Ra5 22. Rb5 Qa7 23. Qd3 axb3 24. axb3 {1-0 (48) Amonatov,F (2649)-Timofeev,A (2664) Dagomys 2008}) 17... Nd4 {[%emt 0:02:50]} 18. Nxd4 {[%emt 0:00:04]} exd4 {[%emt 0:00:01]} 19. Rc1 {[%emt 0:00:15]} Qd7 {[%emt 0:03:58]} 20. Rc6 {[%emt 0:00:16]} Rfc8 {[%emt 0:01:45]} 21. Qc2 {[%emt 0:00:10]} (21. Qc1 $5) 21... Rxc6 {[%emt 0:05:21]} 22. dxc6 {[%emt 0:00:02]} Qc7 {[%emt 0:00:24]} ({Black should try} 22... Rc8 $14) 23. Rc1 $16 {[%emt 0:00:03]} d3 {[%emt 0:00:35]} (23... Rb6 $16 {was called for.}) 24. Qxd3 $18 {[%emt 0:00:20]} Bc3 {[%emt 0:00:04]} 25. e5 {[%emt 0:00:24]} ({Better is} 25. Qd5 $18) 25... dxe5 $14 {[%emt 0:01:50] [#]} 26. Rd1 {[%emt 0:00:51] White is more active.} (26. Qc4 $1 $16) 26... g6 $2 {[%emt 0:00:38][%mdl 8192]} (26... Bd4 $11) 27. Qd7 $18 {[%emt 0:00:36]} Qxd7 {[%emt 0:01:34]} 28. Rxd7 {[%emt 0:00:07] Weighted Error Value: White=0.20 (precise) /Black=0.47} ({Not} 28. cxd7 Bd4 $14) 1-0

[Event "Slovakia Open 2022"]
[Site "Bratislava"]
[Date "2022.09.30"]
[Round "1.6"]
[White "Prochazka, Peter"]
[Black "Kraus, Tomas"]
[Result "0-1"]
[ECO "B07"]
[WhiteElo "1792"]
[BlackElo "2479"]
[Annotator "TA"]
[PlyCount "83"]
[EventDate "2022.09.30"]
[EventCountry "SVK"]
[SourceTitle "playchess.com"]
[Source "ChessBase"]
[SourceQuality "1"]
[TimeControl "2700+10"]

{[%evp 13,83,25,25,-52,0,-35,-25,-29,-31,-46,-42,-54,-46,-65,-43,-78,-67,-72,-61,-63,-60,-62,-55,-53,-49,-69,-69,-69,-66,-68,-48,-79,-50,-55,-24,-24,-24,-29,0,-29,-31,-54,-54,-55,-60,-62,-58,-99,-71,-74,-82,-73,-56,-104,-91,-138,-77,-142,-71,-346,-329,-345,-337,-1252,-1232,-29975,-29976,-29974,-29973,-29981,-29982,-29990]} 1. e4 {[%emt 0:00:09]} d6 {[%emt 0:00:19]} 2. d4 {[%emt 0:00:15]} Nf6 {[%emt 0:00:03]} 3. Nc3 {[%emt 0:00:14]} e5 {[%emt 0:00:08]} 4. dxe5 {[%emt 0:00:24]} dxe5 {[%emt 0:00:02]} 5. Qxd8+ {[%emt 0:00:29]} Kxd8 {[%emt 0:00:02]} 6. Bg5 {[%emt 0:01:27]} Be6 {[%emt 0:00:03]} 7. O-O-O+ {[%emt 0:01:22]} Nbd7 {[%emt 0:00:03]} 8. Bb5 {[%emt 0:02:06] B07: Pirc Defence: Miscellaneous Systems.} ({White should play} 8. f4 $11 exf4 9. Bxf4) 8... Kc8 {[%emt 0:03:26]} (8... c6 $15 9. Ba4 Kc7) 9. f3 {[%emt 0:01:28] [#]} h6 $146 {[%emt 0:02:57]} ({Predecessor:} 9... c6 10. Ba4 Nc5 11. Be3 Nfd7 12. Nge2 Kc7 13. Rd2 Be7 14. Rhd1 Rhd8 15. g4 a5 {0-1 (46) Sasin,M (1512)-Mis,M (2401) Wroclaw 2022}) 10. Be3 {[%emt 0:00:57] Black has an edge.} c6 {[%emt 0:00:51]} 11. Bd3 {[%emt 0:04:06]} Bc5 {[%emt 0:01:12]} 12. Bxc5 {[%emt 0:01:26]} Nxc5 {[%emt 0:00:02]} 13. Nge2 {[%emt 0:01:59]} a5 {[%emt 0:01:23]} 14. a3 {[%emt 0:05:35]} b5 {[%emt 0:01:27]} 15. Nb1 {[%emt 0:01:27]} Rd8 {[%emt 0:01:36]} 16. Ng3 {[%emt 0:02:17]} g6 {[%emt 0:01:17] Black is much more active. The white rooks are badly placed.} 17. Be2 {[%emt 0:00:24]} Rxd1+ {[%emt 0:01:09]} 18. Rxd1 {[%emt 0:00:13]} Kc7 {[%emt 0:00:22]} 19. Nf1 {[%emt 0:00:40]} Ne8 {[%emt 0:01:49]} 20. Nbd2 {[%emt 0:07:37]} Nd6 {[%emt 0:00:40]} 21. b3 {[%emt 0:01:29]} f5 {[%emt 0:02:20][%cal Bf7f5,Bf5f4][%mdl 32]} 22. Ng3 {[%emt 0:01:17]} f4 {[%emt 0:02:47]} 23. Nh1 {[%emt 0:00:15]} b4 {[%emt 0:04:11]} 24. a4 {[%emt 0:01:14]} g5 {[%emt 0:03:38]} 25. Nf2 {[%emt 0:00:10]} Rd8 {[%emt 0:03:11]} 26. Kb2 {[%emt 0:03:58]} h5 {[%emt 0:00:10][%cal Bh6h5,Bh5h4,Bh4h3][%mdl 32]} 27. Nd3 {[%emt 0:01:35]} Nxd3+ {[%emt 0:01:19]} 28. Bxd3 {[%emt 0:00:08]} g4 {[%emt 0:00:10]} 29. Be2 {[%emt 0:00:45]} Rg8 {[%emt 0:01:32]} 30. Rh1 {[%emt 0:01:07]} h4 {[%emt 0:03:10]} 31. fxg4 {[%emt 0:00:54]} Bxg4 {[%emt 0:00:03]} 32. Re1 {[%emt 0:01:22]} Be6 {[%emt 0:03:39]} 33. Bf3 {[%emt 0:00:08]} (33. Bf1 $1 $15 {was preferrable.}) 33... h3 $36 {[%emt 0:01:00][%mdl 2048] White is under strong pressure.} 34. Re2 {[%emt 0:00:13]} (34. gxh3 $142 Bxh3 35. Rh1) 34... Kb6 {[%emt 0:01:34]} (34... c5 $142 35. gxh3 Bxh3) 35. c3 {[%emt 0:00:13]} (35. gxh3 $142 Bxh3 36. Re1) 35... Kc5 {[%emt 0:00:25]} (35... bxc3+ $142 36. Kxc3 Rh8) 36. c4 $2 {[%emt 0:00:29][%mdl 8192] [#] This costs White the game.} (36. gxh3 $17 Bxh3 37. Re1) 36... Nf7 $19 {[%emt 0:01:57]} 37. Kc2 {[%emt 0:00:22]} Ng5 {[%emt 0:00:28]} 38. Rf2 {[%emt 0:00:21]} (38. gxh3 Bxh3 39. Re1) 38... Nxf3 {[%emt 0:00:23]} 39. gxf3 {[%emt 0:00:01]} Rg2 {[%emt 0:00:15] Black mates.} 40. Rf1 {[%emt 0:01:03]} Kd4 {[%emt 0:00:04]} 41. Re1 {[%emt 0:00:10]} Rxh2 {[%emt 0:00:12]} 42. Kb1 {[%emt 0:00:10] Weighted Error Value: White=0.65/Black=0.12 (very precise)} 0-1

[Event "Slovakia Open 2022"]
[Site "Bratislava"]
[Date "2022.09.30"]
[Round "1.7"]
[White "Yankelevich, Lev"]
[Black "Balint, Peter"]
[Result "1/2-1/2"]
[ECO "D85"]
[WhiteElo "2484"]
[BlackElo "2235"]
[Annotator "TA"]
[PlyCount "46"]
[EventDate "2022.09.30"]
[EventCountry "SVK"]
[SourceTitle "playchess.com"]
[Source "ChessBase"]
[SourceQuality "1"]
[TimeControl "2700+10"]

{[%evp 18,46,47,35,41,53,76,63,90,53,57,66,123,133,147,89,80,96,96,92,101,90,109,0,156,147,170,127,134,0,0]} 1. d4 {[%emt 0:00:07]} Nf6 {[%emt 0:00:05]} 2. c4 {[%emt 0:00:02]} g6 {[%emt 0:00:13]} 3. Nc3 {[%emt 0:00:03]} d5 {[%emt 0:00:02]} 4. cxd5 {[%emt 0:00:03]} Nxd5 {[%emt 0:00:01]} 5. e4 {[%emt 0:00:01]} Nxc3 {[%emt 0:00:01]} 6. bxc3 {[%emt 0:00:01]} Bg7 {[%emt 0:00:22]} 7. Nf3 {[%emt 0:00:02]} O-O {[%emt 0:00:09]} 8. Be2 {[%emt 0:01:58]} c5 {[%emt 0:00:08]} 9. O-O {[%emt 0:00:02]} b6 {[%emt 0:03:25]} 10. Bg5 $1 {[%emt 0:07:06] 10.Bg5 scores better than 10.Be3.} Qc7 {[%emt 0:01:52] [#] D85: Exchange Grünfeld: Unusual White 7th moves and lines with 7 Nf3.} 11. Rc1 $146 {[%emt 0:02:00]} ({Predecessor:} 11. Qd2 Nc6 12. Rad1 Bg4 13. d5 Ne5 14. Nxe5 Bxe2 15. Nxg6 hxg6 16. Qxe2 Bxc3 17. f4 Bd4+ 18. Kh1 {½-½ (45) Schekachikhin,M (2403)-Timerkhanov,A (2371) St Petersburg 2018}) 11... Bb7 {[%emt 0:03:18]} 12. d5 {[%emt 0:03:47]} Qd6 {[%emt 0:02:37] White is slightly better.} 13. c4 {[%emt 0:12:06]} Nd7 {[%emt 0:01:16]} 14. Qd2 {[%emt 0:00:03]} f5 {[%emt 0:07:38]} ({Black should play} 14... e6 $14) 15. exf5 $16 {[%emt 0:02:48]} Rxf5 {[%emt 0:02:40] [#]} 16. Bd3 {[%emt 0:00:17]} (16. Nh4 $142 $1 {[%cal Rh4f5]}) 16... Rxf3 {[%emt 0:02:15]} 17. gxf3 {[%emt 0:00:02]} Ne5 {[%emt 0:00:32]} 18. Be4 {[%emt 0:00:13]} Rf8 {[%emt 0:00:22]} 19. Kg2 {[%emt 0:01:19]} Bc8 {[%emt 0:01:31]} 20. Bh6 {[%emt 0:01:23]} ({Don't do} 20. f4 Nf7 $14) (20. Rh1 $16) 20... Qd7 $2 {[%emt 0:05:34] [#]} (20... Bxh6 $1 $11 21. Qxh6 Ba6) 21. Bxg7 {[%emt 0:00:03]} Qh3+ {[%emt 0:00:03]} 22. Kh1 {[%emt 0:00:05]} Kxg7 {[%emt 0:02:40]} 23. f4 {[%emt 0:10:55]} (23. Qc3 $16 Qh5 24. Rg1) 23... Nxc4 {[%emt 0:01:32] Weighted Error Value: White=0.34/Black=0.25 (precise)} 1/2-1/2